Workbook

Sheet 整修成本
B1: 廚房整修成本工作表
B3: 類別 | C3: 項目 | D3: 數量 | E3: 預估成本 | F3: 實際成本 | G3: 預估總成本 | H3: 實際總成本
B4: 櫥櫃 | C4: 下櫥櫃：標準組合 (數量以直線距離的英呎計算) | D4: 25 | E4: NT$5.00 | G4: =資料[[#This Row],[數量]]*資料[[#This Row],[預估成本]] -> NT$125 | H4: =資料[[#This Row],[數量]]*資料[[#This Row],[實際成本]] -> NT$0
B5: 櫥櫃 | C5: 上櫥櫃：標準組合 (數量以直線距離的英呎計算) | D5: 25 | E5: NT$3.50 | G5: =資料[[#This Row],[數量]]*資料[[#This Row],[預估成本]] -> NT$88 | H5: =資料[[#This Row],[數量]]*資料[[#This Row],[實際成本]] -> NT$0
B6: 清潔設備 | C6: 洗碗機：標準 | D6: 1 | E6: NT$250.00 | G6: =資料[[#This Row],[數量]]*資料[[#This Row],[預估成本]] -> NT$250 | H6: =資料[[#This Row],[數量]]*資料[[#This Row],[實際成本]] -> NT$0
B7: 清潔設備 | C7: 廚餘處理機：標準 | D7: 1 | E7: NT$175.00 | G7: =資料[[#This Row],[數量]]*資料[[#This Row],[預估成本]] -> NT$175 | H7: =資料[[#This Row],[數量]]*資料[[#This Row],[實際成本]] -> NT$0
B8: 烹調設備 | C8: 範圍：標準滑入式 | D8: 1 | E8: NT$375.00 | G8: =資料[[#This Row],[數量]]*資料[[#This Row],[預估成本]] -> NT$375 | H8: =資料[[#This Row],[數量]]*資料[[#This Row],[實際成本]] -> NT$0
B9: 烹調設備 | C9: 微波：標準 | D9: 1 | E9: NT$300.00 | G9: =資料[[#This Row],[數量]]*資料[[#This Row],[預估成本]] -> NT$300 | H9: =資料[[#This Row],[數量]]*資料[[#This Row],[實際成本]] -> NT$0
B10: 流理台 | C10: 人造石 (數量以直線距離的英呎計算) | D10: 23 | E10: NT$10.00 | G10: =資料[[#This Row],[數量]]*資料[[#This Row],[預估成本]] -> NT$230 | H10: =資料[[#This Row],[數量]]*資料[[#This Row],[實際成本]] -> NT$0
B11: 門 | C11: 內部：實心單板 | D11: 1 | E11: NT$65.00 | G11: =資料[[#This Row],[數量]]*資料[[#This Row],[預估成本]] -> NT$65 | H11: =資料[[#This Row],[數量]]*資料[[#This Row],[實際成本]] -> NT$0
B12: 附加設備 | C12: 附加：即時熱水標準裝置 | D12: 1 | E12: NT$120.00 | G12: =資料[[#This Row],[數量]]*資料[[#This Row],[預估成本]] -> NT$120 | H12: =資料[[#This Row],[數量]]*資料[[#This Row],[實際成本]] -> NT$0
B13: 附加設備 | C13: 附加：給皂機 | D13: 1 | E13: NT$40.00 | G13: =資料[[#This Row],[數量]]*資料[[#This Row],[預估成本]] -> NT$40 | H13: =資料[[#This Row],[數量]]*資料[[#This Row],[實際成本]] -> NT$0
B14: 水龍頭 | C14: 水龍頭：標準把手 | D14: 1 | E14: NT$130.00 | G14: =資料[[#This Row],[數量]]*資料[[#This Row],[預估成本]] -> NT$130 | H14: =資料[[#This Row],[數量]]*資料[[#This Row],[實際成本]] -> NT$0
B15: 地板 | C15: 超耐磨材質 (數量以平方英呎計算) | D15: 165 | E15: NT$3.50 | G15: =資料[[#This Row],[數量]]*資料[[#This Row],[預估成本]] -> NT$578 | H15: =資料[[#This Row],[數量]]*資料[[#This Row],[實際成本]] -> NT$0
B16: 洗衣設備 | C16: 洗衣機：標準 | D16: 1 | E16: NT$500.00 | G16: =資料[[#This Row],[數量]]*資料[[#This Row],[預估成本]] -> NT$500 | H16: =資料[[#This Row],[數量]]*資料[[#This Row],[實際成本]] -> NT$0
B17: 洗衣設備 | C17: 烘衣機：標準 | D17: 1 | E17: NT$375.00 | G17: =資料[[#This Row],[數量]]*資料[[#This Row],[預估成本]] -> NT$375 | H17: =資料[[#This Row],[數量]]*資料[[#This Row],[實際成本]] -> NT$0
B18: 照明 | C18: 照明：嵌燈 | D18: 4 | E18: NT$35.00 | G18: =資料[[#This Row],[數量]]*資料[[#This Row],[預估成本]] -> NT$140 | H18: =資料[[#This Row],[數量]]*資料[[#This Row],[實際成本]] -> NT$0
B19: 冰箱 | C19: 冰箱：獨立式、豪華型 | D19: 1 | E19: NT$1,200.00 | G19: =資料[[#This Row],[數量]]*資料[[#This Row],[預估成本]] -> NT$1,200 | H19: =資料[[#This Row],[數量]]*資料[[#This Row],[實際成本]] -> NT$0
B20: 水槽 | C20: 雙槽不鏽鋼豪華型 | D20: 1 | E20: NT$125.00 | G20: =資料[[#This Row],[數量]]*資料[[#This Row],[預估成本]] -> NT$125 | H20: =資料[[#This Row],[數量]]*資料[[#This Row],[實際成本]] -> NT$0
B21: 通風 | C21: 通風罩：標準通風道 | D21: 1 | E21: NT$180.00 | G21: =資料[[#This Row],[數量]]*資料[[#This Row],[預估成本]] -> NT$180 | H21: =資料[[#This Row],[數量]]*資料[[#This Row],[實際成本]] -> NT$0
B22: 牆 | C22: 牆板 (數量以平方英呎計算) | D22: 70 | E22: NT$2.00 | G22: =資料[[#This Row],[數量]]*資料[[#This Row],[預估成本]] -> NT$140 | H22: =資料[[#This Row],[數量]]*資料[[#This Row],[實際成本]] -> NT$0
B23: 窗戶 | C23: 可滑動 | D23: 2 | E23: NT$120.00 | G23: =資料[[#This Row],[數量]]*資料[[#This Row],[預估成本]] -> NT$240 | H23: =資料[[#This Row],[數量]]*資料[[#This Row],[實際成本]] -> NT$0
B24: 其他 | G24: =資料[[#This Row],[數量]]*資料[[#This Row],[預估成本]] -> NT$0 | H24: =資料[[#This Row],[數量]]*資料[[#This Row],[實際成本]] -> NT$0
B25: 合計 | E25: =SUBTOTAL(109,資料[預估成本]) -> NT$4,014.00 | F25: =SUBTOTAL(109,資料[實際成本]) -> NT$0.00 | G25: =SUBTOTAL(109,資料[預估總成本]) -> NT$5,375.00 | H25: =SUBTOTAL(109,資料[實際總成本]) -> NT$0.00
B26: 小計 | G26: =SUBTOTAL(109,資料[預估總成本]) -> NT$5,375.00 | H26: =SUBTOTAL(109,資料[實際總成本]) -> NT$0.00
B27: 非預期成本 - 外加 30% | G27: =G26*0.3 -> NT$1,612.50 | H27: =H26*0.3 -> NT$0.00
B28: 合計 | G28: =SUM(G26:G27) -> NT$6,987.50 | H28: =SUM(H26:H27) -> NT$0.00
